[Event "FIDE World Cadets GU12 2022"]
[Site "Batumi"]
[Date "2022.09.24"]
[Round "8.1"]
[White "Ismayilova, Khanim"]
[Black "Mgeladze, Kesaria"]
[Result "1/2-1/2"]
[ECO "A36"]
[WhiteElo "1901"]
[BlackElo "1771"]
[Annotator "TA"]
[PlyCount "169"]
[EventDate "2022.09.16"]
[EventType "swiss"]
[EventCountry "GEO"]
[SourceTitle "playchess.com"]
[Source "ChessBase"]
[SourceQuality "1"]
[TimeControl "5400+30"]

{[%evp 11,168,-2,-2,-2,-13,-12,0,0,0,-39,-31,-44,-37,-29,-15,-60,-60,-60,-64,-64,-65,-67,-60,-60,-53,-66,-24,-24,-24,-38,-25,-73,-24,-72,-24,-72,-65,-64,-48,-56,0,0,0,0,0,0,0,0,0,0,24,33,39,9,34,41,81,57,53,56,79,90,105,106,104,85,94,86,89,57,172,168,167,100,191,189,185,182,175,8,8,8,229,229,229,229,229,8,8,8,8,8,8,8,8,0,8,0,8,8,8,8,8,8,8,8,8,8,8,8,8,8,8,8,8,8,8,8,8,0,8,8,8,8,8,8,8,8,8,8,8,8,8,8,8,8,8,8,8,8,8,8,8,8,8,8,8,8,8,8,8,8,8,8,8,8,8,8,8]} 1. e4 {[%emt 0:02:00]} c5 {[%emt 0:01:00]} 2. c4 {[%emt 0:00:30]} Nc6 {[%emt 0:00:30]} 3. Nc3 {[%emt 0:00:30]} g6 {[%emt 0:00:30]} 4. g3 {[%emt 0:00:30]} Bg7 {[%emt 0:00:30]} 5. Bg2 {[%emt 0:00:00]} Rb8 {[%emt 0:00:30]} 6. Nge2 {[%emt 0:00:00]} a6 {[%emt 0:00:00]} 7. a4 {[%emt 0:01:30] A36: Symmetrical English vs ...g6: 4 Bg2 Bg7.} d6 {[%emt 0:00:00]} 8. O-O {[%emt 0:00:30]} Bg4 {[%emt 0:00:30] [#]} 9. d3 $146 {[%emt 0:06:30]} ({Predecessor:} 9. f3 Bd7 10. d3 f5 11. Be3 Nf6 12. h3 O-O 13. Qd2 e5 14. Bg5 Qa5 15. Rfb1 {½-½ (26) Alanic,X (2264)-Collas,D (2399) Caen 2011}) 9... Bxe2 {[%emt 0:00:30]} 10. Qxe2 {[%emt 0:02:30]} e6 {[%emt 0:04:30]} 11. Be3 {[%emt 0:05:30]} Nge7 {[%emt 0:00:30][%cal Bg8e7,Be7c6,Bc6d4][%mdl 32]} 12. Qd2 {[%emt 0:05:30]} O-O {[%emt 0:04:30]} 13. Bh6 {[%emt 0:02:30]} Nd4 {[%emt 0:03:30]} 14. Bxg7 {[%emt 0:00:30]} Kxg7 {[%emt 0:00:30]} 15. Ne2 {[%emt 0:03:30]} Nec6 {[%emt 0:03:30]} 16. Nxd4 {[%emt 0:03:30]} Nxd4 {[%emt 0:00:30]} 17. b4 {[%emt 0:00:30]} e5 {[%emt 0:19:30]} 18. Rab1 {[%emt 0:02:30] Inhibits Nb3.} cxb4 {[%emt 0:02:30]} 19. Rxb4 {[%emt 0:03:30]} b5 {[%emt 0:29:30]} 20. axb5 {[%emt 0:07:30]} axb5 {[%emt 0:00:00]} 21. Rfb1 {[%emt 0:03:30] [#]} (21. cxb5 $11 Rxb5 22. Rxb5 Nxb5 23. f4) 21... Qa5 {[%emt 0:00:00]} (21... bxc4 $1 $17 22. Rxb8 (22. dxc4 Qc7) 22... Qxb8 23. Rxb8 Rxb8) 22. Qb2 {[%emt 0:11:30]} (22. Qd1 $1 $11) 22... bxc4 {[%emt 0:05:30]} 23. dxc4 {[%emt 0:02:30]} (23. Rxb8 $11 c3 24. Qb4 Rxb8 25. Qxb8 (25. Qxa5 $2 {perishes.} Rxb1+ 26. Bf1 c2 $19)) 23... Rxb4 {[%emt 0:02:30]} 24. Qxb4 {[%emt 0:00:30]} Qxb4 {[%emt 0:01:30]} 25. Rxb4 $17 {[%emt 0:00:00][%mdl 4096] Endgame KRB-KRN} Kf6 {[%emt 0:01:46]} (25... Rc8 $15) 26. Rb6 $11 {[%emt 0:03:00]} Ke7 {[%emt 0:00:28]} 27. Rb7+ {[%emt 0:00:30]} Kf6 {[%emt 0:02:24]} 28. Rd7 {[%emt 0:02:30]} Rc8 {[%emt 0:04:24]} 29. Rxd6+ {[%emt 0:00:30]} Ke7 {[%emt 0:00:02]} 30. Rd5 {[%emt 0:00:30]} Rxc4 {[%emt 0:01:22]} 31. Rxe5+ {[%emt 0:01:30]} Kf6 {[%emt 0:00:03]} 32. Rd5 {[%emt 0:01:30]} Ne2+ {[%emt 0:01:08]} 33. Kf1 {[%emt 0:00:30]} Nc3 {[%emt 0:00:06] White must now prevent ...Rb4.} 34. Rd6+ {[%emt 0:01:30]} Ke5 {[%emt 0:03:09]} 35. Rd7 {[%emt 0:05:30]} Kf6 {[%emt 0:00:46]} 36. e5+ {[%emt 0:03:30]} Kxe5 {[%emt 0:00:54]} 37. Rxf7 {[%emt 0:00:00] White is more active.} h6 {[%emt 0:00:49]} 38. Bh3 {[%emt 0:03:07]} Nd5 {[%emt 0:01:24]} 39. Rd7 {[%emt 0:01:57]} Rc5 {[%emt 0:03:14]} 40. f4+ {[%emt 0:04:29]} Nxf4 {[%emt 0:01:37]} 41. gxf4+ $18 {[%emt 0:03:11]} Kxf4 $14 {[%emt 0:00:06] KRB-KR} 42. Rd2 {[%emt 0:04:10]} (42. Rd6 $18) 42... g5 {[%emt 0:01:46]} (42... h5 $16 43. Rf2+ Ke3 44. Re2+ Kf4 45. Rf2+ Ke3 46. Re2+ Kf4) 43. Rf2+ $18 {[%emt 0:00:30]} Ke3 {[%emt 0:00:00] [#]} 44. Bg4 $1 {[%emt 0:00:37]} Rc4 {[%emt 0:00:32]} 45. h3 {[%emt 0:00:53]} (45. Rf3+ $18 Kd4 46. Kf2) 45... Rf4 $11 {[%emt 0:00:37]} 46. Rxf4 {[%emt 0:00:45]} Kxf4 {[%emt 0:00:05] KB-KPP} (46... gxf4 $11 47. Be2 Kd4) 47. Kf2 $18 {[%emt 0:01:26]} Ke5 {[%emt 0:00:06]} 48. Ke3 {[%emt 0:00:39]} Kf6 {[%emt 0:00:08] [#]} 49. Ke4 $2 {[%emt 0:01:22]} ({Only move:} 49. Bh5 $1 $18) 49... Kg6 $1 $11 {[%emt 0:00:06] The position is equal.} (49... Kg7 50. Kf5 $18) 50. Ke5 {[%emt 0:01:26]} h5 $1 {[%emt 0:00:08]} 51. Bf5+ {[%emt 0:00:35]} Kf7 {[%emt 0:00:29]} 52. Be6+ {[%emt 0:01:03]} Kg6 {[%emt 0:00:04]} 53. Bf5+ {[%emt 0:01:41]} Kf7 {[%emt 0:00:30]} 54. Be6+ {[%emt 0:00:30]} Kg6 {[%emt 0:00:00]} 55. Bd5 {[%emt 0:00:23]} Kg7 {[%emt 0:00:09]} 56. Bc4 {[%emt 0:00:30]} Kg6 {[%emt 0:00:02]} 57. Bd3+ {[%emt 0:00:43]} Kg7 {[%emt 0:00:30]} 58. Bc2 {[%emt 0:00:04]} Kf7 {[%emt 0:00:00]} 59. Ke4 {[%emt 0:01:14]} Kf6 {[%emt 0:00:14]} 60. Bb3 {[%emt 0:00:30]} Kg6 {[%emt 0:00:30]} 61. Ke5 {[%emt 0:00:00]} Kg7 {[%emt 0:00:00]} 62. Ke6 {[%emt 0:00:00]} Kg6 {[%emt 0:00:00]} 63. Bc2+ {[%emt 0:00:03]} Kg7 {[%emt 0:00:00]} 64. Bd3 {[%emt 0:00:30]} Kg8 {[%emt 0:00:00]} 65. Bc2 {[%emt 0:00:35]} Kg7 {[%emt 0:00:00]} 66. Ke7 {[%emt 0:00:35]} Kh6 {[%emt 0:00:08]} 67. Be4 {[%emt 0:00:45] aiming for Kf7.} Kg7 {[%emt 0:00:32]} 68. Ke6 {[%emt 0:00:30]} Kg8 {[%emt 0:00:30]} 69. Bf5 {[%emt 0:00:00]} Kh8 {[%emt 0:00:00]} 70. Kf7 {[%emt 0:00:20]} g4 $1 {[%emt 0:00:00]} 71. h4 {[%emt 0:01:20]} g3 {[%emt 0:00:05]} 72. Bh3 {[%emt 0:00:05]} Kh7 {[%emt 0:00:11]} 73. Bg2 {[%emt 0:00:30]} Kh8 {[%emt 0:00:00]} 74. Bf3 {[%emt 0:00:37]} g2 {[%emt 0:00:08]} 75. Bxg2 {[%emt 0:00:30] KB-KP} Kh7 {[%emt 0:00:00]} 76. Kf8 {[%emt 0:00:07]} Kh8 {[%emt 0:00:08]} 77. Bf3 {[%emt 0:00:30]} Kh7 {[%emt 0:00:00]} 78. Bxh5 {[%emt 0:00:06]} Kh8 {[%emt 0:00:09]} 79. Bg4 {[%emt 0:00:30]} Kh7 {[%emt 0:00:30]} 80. h5 {[%emt 0:00:30]} Kh8 {[%emt 0:00:30]} 81. Kf7 {[%emt 0:00:30]} Kh7 {[%emt 0:00:30]} 82. Bf5+ {[%emt 0:00:30]} Kh8 {[%emt 0:00:00]} 83. Kg6 {[%emt 0:00:00]} Kg8 {[%emt 0:00:00]} 84. h6 {[%emt 0:00:00]} Kh8 {[%emt 0:00:00]} 85. h7 {[%emt 0:00:00] Weighted Error Value: White=0.25 (precise) /Black=0.18 (very precise)} 1/2-1/2

[Event "FIDE World Cadets GU12 2022"]
[Site "Batumi"]
[Date "2022.09.24"]
[Round "8.2"]
[White "Kaliakhmet, Elnaz"]
[Black "Yousefian, Maedeh"]
[Result "0-1"]
[ECO "E19"]
[WhiteElo "1864"]
[BlackElo "1765"]
[Annotator "NA RC COMBH"]
[PlyCount "120"]
[EventDate "2022.09.16"]
[EventType "swiss"]
[EventCountry "GEO"]
[SourceTitle "playchess.com"]
[Source "ChessBase"]
[SourceQuality "1"]
[TimeControl "5400+30"]

1. d4 {[%emt 0:01:00]} Nf6 {[%emt 0:01:00]} 2. c4 {[%emt 0:00:30]} e6 {[%emt 0:00:30]} 3. Nf3 {[%emt 0:00:30]} b6 {[%emt 0:00:00]} 4. g3 {[%emt 0:00:30]} Bb7 {[%emt 0:00:00]} 5. Bg2 {[%emt 0:00:30]} Be7 {[%emt 0:00:30]} 6. O-O {[%emt 0:00:30]} O-O {[%emt 0:00:00]} 7. Nc3 {[%emt 0:00:30]} Ne4 {[%emt 0:00:00]} 8. Qc2 {[%emt 0:01:30]} Nxc3 {[%emt 0:01:30]} 9. Qxc3 {[%emt 0:00:30]} d6 {[%emt 0:00:00]} 10. b3 {[%emt 0:10:30]} Nd7 {[%emt 0:00:00]} 11. Bb2 {[%emt 0:00:00]} Qe8 {[%emt 0:00:30]} 12. Qc2 {[%emt 0:09:00]} f5 {[%emt 0:00:30]} 13. Ne1 {[%emt 0:09:30]} Bxg2 {[%emt 0:00:30]} 14. Nxg2 {[%emt 0:00:30]} Bf6 {[%emt 0:16:30]} 15. Rad1 {[%emt 0:13:30]} g6 {[%emt 0:13:30]} 16. e4 {[%emt 0:05:30]} fxe4 {[%emt 0:17:30]} 17. Qxe4 {[%emt 0:03:30]} Rf7 {[%emt 0:19:30]} 18. Nf4 {[%emt 0:03:30]} Nf8 {[%emt 0:01:30]} 19. Rfe1 {[%emt 0:09:30]} Re7 {[%emt 0:00:30]} 20. Ba3 {[%emt 0:05:30]} Rd8 {[%emt 0:03:30]} 21. c5 {[%emt 0:05:37]} bxc5 {[%emt 0:01:30]} 22. dxc5 {[%emt 0:03:08]} d5 {[%emt 0:00:30]} 23. Qf3 {[%emt 0:01:38]} c6 {[%emt 0:02:30]} 24. Nh5 {[%emt 0:02:59]} Bh8 {[%emt 0:02:18]} 25. Nf6+ {[%emt 0:00:44]} Bxf6 {[%emt 0:00:30]} 26. Qxf6 {[%emt 0:00:00]} Nd7 {[%emt 0:09:50]} 27. Qf3 {[%emt 0:02:11]} Qf7 {[%emt 0:00:46]} 28. Qd3 {[%emt 0:01:51]} Rf8 {[%emt 0:02:06]} 29. Rd2 {[%emt 0:02:07]} Nf6 {[%emt 0:01:36]} 30. Rde2 {[%emt 0:02:38]} Ne4 {[%emt 0:00:52]} 31. Rf1 {[%emt 0:01:03]} e5 {[%emt 0:03:11]} 32. b4 {[%emt 0:02:07]} Ng5 {[%emt 0:00:49]} 33. b5 {[%emt 0:01:45]} Nf3+ {[%emt 0:02:09]} 34. Kg2 {[%emt 0:00:32]} e4 {[%emt 0:00:07]} 35. Qc3 {[%emt 0:01:49]} Ng5 {[%emt 0:01:08]} 36. Re3 {[%emt 0:01:06]} Qf5 {[%emt 0:00:34]} 37. g4 {[%emt 0:00:43]} Qxg4+ {[%emt 0:00:26]} 38. Rg3 {[%emt 0:00:30]} Qf5 {[%emt 0:00:30]} 39. Bb2 {[%emt 0:00:30]} Ne6 {[%emt 0:00:00]} 40. Kh1 {[%emt 0:00:31]} d4 {[%emt 0:00:36]} 41. Qb3 {[%emt 0:00:28]} Kg7 {[%emt 0:01:11]} 42. bxc6 {[%emt 0:00:19]} h5 {[%emt 0:00:17]} 43. Qc4 {[%emt 0:00:55]} Rd8 {[%emt 0:00:33]} 44. Rfg1 {[%emt 0:00:17]} g5 {[%emt 0:00:41]} 45. Qc1 {[%emt 0:00:21]} Kg6 {[%emt 0:00:16]} 46. Qd2 {[%emt 0:00:53]} h4 {[%emt 0:00:30]} 47. Rg4 {[%emt 0:00:00]} Qf3+ {[%emt 0:00:19]} 48. R1g2 {[%emt 0:00:14]} Rd5 {[%emt 0:00:41]} 49. Kg1 {[%emt 0:01:18]} Kh5 {[%emt 0:00:31]} 50. Bc1 {[%emt 0:00:15]} Nf4 {[%emt 0:00:45]} 51. a4 {[%emt 0:00:30]} Nxg2 {[%emt 0:00:15]} 52. Rxg5+ {[%emt 0:00:12]} Kh6 {[%emt 0:00:04]} 53. Rxd5+ {[%emt 0:00:42]} Ne3 {[%emt 0:01:24]} 54. Rd6+ {[%emt 0:00:28]} Kh7 {[%emt 0:00:17]} 55. Rg6 {[%emt 0:00:36]} Kxg6 {[%emt 0:00:10]} 56. fxe3 {[%emt 0:00:10]} Kh7 {[%emt 0:00:27]} 57. Qxd4 {[%emt 0:00:53]} Rg7+ {[%emt 0:00:30]} 58. Qxg7+ {[%emt 0:00:06]} Kxg7 {[%emt 0:00:00]} 59. c7 {[%emt 0:00:32]} h3 {[%emt 0:00:03]} 60. Bb2+ {[%emt 0:00:29]} Kh7 {[%emt 0:00:07]} 0-1

[Event "FIDE World Cadets GU12 2022"]
[Site "Batumi"]
[Date "2022.09.24"]
[Round "8.3"]
[White "Shubhi Gupta"]
[Black "Merkulova, Victoria"]
[Result "1-0"]
[ECO "A43"]
[WhiteElo "1733"]
[BlackElo "1715"]
[Annotator "NA RC COMBH"]
[PlyCount "55"]
[EventDate "2022.09.16"]
[EventType "swiss"]
[EventCountry "GEO"]
[SourceTitle "playchess.com"]
[Source "ChessBase"]
[SourceQuality "1"]
[TimeControl "5400+30"]

1. d4 {[%emt 0:02:00]} Nf6 {[%emt 0:01:00]} 2. Nc3 {[%emt 0:00:30]} c5 {[%emt 0:00:00]} 3. d5 {[%emt 0:00:30]} g6 {[%emt 0:00:00]} 4. e4 {[%emt 0:01:30]} d6 {[%emt 0:00:30]} 5. Be2 {[%emt 0:06:30]} Bg7 {[%emt 0:01:30]} 6. Be3 {[%emt 0:00:30]} O-O {[%emt 0:03:30]} 7. Qd2 {[%emt 0:11:30]} Bd7 {[%emt 0:08:30]} 8. a4 {[%emt 0:02:30]} Na6 {[%emt 0:04:30]} 9. h3 {[%emt 0:05:30]} e6 {[%emt 0:06:30]} 10. dxe6 {[%emt 0:15:30]} Bxe6 {[%emt 0:00:00]} 11. Bxa6 {[%emt 0:02:30]} bxa6 {[%emt 0:00:00]} 12. Rd1 {[%emt 0:02:30]} Qa5 {[%emt 0:04:30]} 13. Nge2 {[%emt 0:00:30]} Rad8 {[%emt 0:11:30]} 14. O-O {[%emt 0:02:30]} Rfe8 {[%emt 0:03:30]} 15. Bg5 {[%emt 0:05:30]} Qb4 {[%emt 0:12:30]} 16. e5 {[%emt 0:03:30]} Nd7 {[%emt 0:12:30]} 17. Bxd8 {[%emt 0:03:30]} Rxd8 {[%emt 0:00:00]} 18. exd6 {[%emt 0:03:30]} Ne5 {[%emt 0:01:00]} 19. Qf4 {[%emt 0:05:30]} Qxb2 {[%emt 0:08:30]} 20. Ne4 {[%emt 0:05:13]} Bf5 {[%emt 0:05:07]} 21. N2g3 {[%emt 0:02:28]} Bxe4 {[%emt 0:05:17]} 22. Nxe4 {[%emt 0:01:10]} Nc6 {[%emt 0:03:21]} 23. Nxc5 {[%emt 0:06:59]} Be5 {[%emt 0:01:21]} 24. Qe4 {[%emt 0:00:36]} Nd4 {[%emt 0:02:33]} 25. Nd3 {[%emt 0:00:57]} Qxc2 {[%emt 0:01:12]} 26. Qxe5 {[%emt 0:00:14]} Ne2+ {[%emt 0:00:32]} 27. Kh1 {[%emt 0:00:30]} Nc3 {[%emt 0:00:00]} 28. Rc1 {[%emt 0:00:17]} 1-0

[Event "FIDE World Cadets GU12 2022"]
[Site "Batumi"]
[Date "2022.09.24"]
[Round "8.4"]
[White "Goriachkina, Oksana"]
[Black "Maklakova, Naomi"]
[Result "1-0"]
[ECO "D45"]
[WhiteElo "1748"]
[BlackElo "1635"]
[Annotator "NA RC COMBH"]
[PlyCount "88"]
[EventDate "2022.09.16"]
[EventType "swiss"]
[EventCountry "GEO"]
[SourceTitle "playchess.com"]
[Source "ChessBase"]
[SourceQuality "1"]
[TimeControl "5400+30"]

1. d4 {[%emt 0:01:00]} d5 {[%emt 0:08:00]} 2. c4 {[%emt 0:00:00]} e6 {[%emt 0:02:30]} 3. Nc3 {[%emt 0:00:00]} c6 {[%emt 0:00:30]} 4. e3 {[%emt 0:01:30]} Nf6 {[%emt 0:00:00]} 5. Nf3 {[%emt 0:00:30]} Nbd7 {[%emt 0:03:00]} 6. Be2 {[%emt 0:02:30]} Bd6 {[%emt 0:02:30]} 7. O-O {[%emt 0:01:30]} O-O {[%emt 0:02:30]} 8. b3 {[%emt 0:02:30]} Ne4 {[%emt 0:09:30]} 9. Bb2 {[%emt 0:00:30]} f5 {[%emt 0:02:30]} 10. g3 {[%emt 0:14:30]} Ndf6 {[%emt 0:35:30]} 11. Ne5 {[%emt 0:06:30]} Nxc3 {[%emt 0:06:30]} 12. Bxc3 {[%emt 0:00:30]} Ne4 {[%emt 0:00:00]} 13. Bb2 {[%emt 0:00:30]} g5 {[%emt 0:08:20]} 14. Bd3 {[%emt 0:06:30]} Nf6 {[%emt 0:02:17]} 15. c5 {[%emt 0:17:30]} Bc7 {[%emt 0:00:41]} 16. f4 {[%emt 0:02:30]} g4 {[%emt 0:01:31]} 17. b4 {[%emt 0:01:30]} Bd7 {[%emt 0:01:28]} 18. Qb3 {[%emt 0:01:30]} a5 {[%emt 0:01:16]} 19. a3 {[%emt 0:02:30]} Qc8 {[%emt 0:07:58]} 20. Bc3 {[%emt 0:00:30]} a4 {[%emt 0:01:58]} 21. Qd1 {[%emt 0:01:30]} Be8 {[%emt 0:00:22]} 22. Bc2 {[%emt 0:02:30]} b5 {[%emt 0:00:36]} 23. cxb6 {[%emt 0:00:30]} Bxb6 {[%emt 0:00:02]} 24. Bxa4 {[%emt 0:07:30]} c5 {[%emt 0:01:28]} 25. Bxe8 {[%emt 0:00:30]} cxd4 {[%emt 0:00:05]} 26. Bxd4 {[%emt 0:01:30]} Bxd4 {[%emt 0:00:07]} 27. exd4 {[%emt 0:02:30]} Qxe8 {[%emt 0:00:06]} 28. Nd3 {[%emt 0:02:30]} Ne4 {[%emt 0:00:51]} 29. Nc5 {[%emt 0:00:30]} Nc3 {[%emt 0:00:47]} 30. Qd3 {[%emt 0:01:30]} Na4 {[%emt 0:00:11]} 31. Rfe1 {[%emt 0:00:43]} Rf6 {[%emt 0:00:05]} 32. Re2 {[%emt 0:00:30]} Qc6 {[%emt 0:00:46]} 33. Rae1 {[%emt 0:00:50]} h5 {[%emt 0:00:51]} 34. Qb3 {[%emt 0:02:15]} Nxc5 {[%emt 0:01:04]} 35. dxc5 {[%emt 0:01:14]} Kf7 {[%emt 0:00:06]} 36. Rc2 {[%emt 0:00:40]} Qb5 {[%emt 0:01:45]} 37. Rd1 {[%emt 0:00:45]} Kg6 {[%emt 0:00:32]} 38. Qd3 {[%emt 0:02:14]} Qa4 {[%emt 0:00:30]} 39. Re1 {[%emt 0:00:15]} Qa6 {[%emt 0:00:46]} 40. Qxa6 {[%emt 0:00:45]} Rxa6 {[%emt 0:00:30]} 41. c6 {[%emt 0:00:09]} Ra8 {[%emt 0:00:06]} 42. c7 {[%emt 0:00:21]} Rc8 {[%emt 0:00:25]} 43. b5 {[%emt 0:00:23]} e5 {[%emt 0:00:21]} 44. Rxe5 {[%emt 0:00:27]} Rb6 {[%emt 0:00:18]} 1-0

[Event "FIDE World Cadets GU12 2022"]
[Site "Batumi"]
[Date "2022.09.24"]
[Round "8.5"]
[White "Preobrazhenskaya, Diana"]
[Black "Kholyavko, Mariya"]
[Result "1-0"]
[ECO "B36"]
[WhiteElo "1994"]
[BlackElo "1421"]
[Annotator "TA"]
[PlyCount "73"]
[EventDate "2022.09.16"]
[EventType "swiss"]
[EventCountry "GEO"]
[SourceTitle "playchess.com"]
[Source "ChessBase"]
[SourceQuality "1"]
[TimeControl "5400+30"]

{[%evp 18,73,48,50,47,35,32,19,31,10,14,11,32,28,32,27,70,56,105,103,121,111,120,121,121,120,118,118,203,201,240,113,192,194,480,480,473,478,452,444,538,535,428,406,371,372,1500,1601,1493,1441,1531,1680,1241,1146,1357,1270,29976,4786]} 1. e4 {[%emt 0:01:00]} c5 {[%emt 0:01:00]} 2. Nf3 {[%emt 0:00:30]} Nc6 {[%emt 0:00:30]} 3. d4 {[%emt 0:00:30]} cxd4 {[%emt 0:00:30]} 4. Nxd4 {[%emt 0:00:30]} g6 {[%emt 0:00:00]} 5. c4 {[%emt 0:00:00]} Nf6 {[%emt 0:00:00]} 6. Nc3 {[%emt 0:00:00]} Nxd4 {[%emt 0:00:00]} 7. Qxd4 {[%emt 0:00:00]} d6 {[%emt 0:00:00]} 8. Be2 {[%emt 0:00:00]} Bg7 {[%emt 0:00:00]} 9. Be3 {[%emt 0:00:00]} O-O {[%emt 0:00:00]} 10. Qd2 {[%emt 0:00:00]} a5 {[%emt 0:00:00] B36: Sicilian: Maroczy Bind: Gurgenidze System.} 11. f3 {[%emt 0:13:30]} a4 {[%emt 0:00:00]} 12. Rb1 {[%emt 0:02:30]} Qa5 {[%emt 0:01:30] The position is equal.} 13. Kf2 {[%emt 0:01:30] [#]} Be6 $146 {[%emt 0:06:30]} ({Predecessor:} 13... Qe5 14. Bf4 Qc5+ 15. Be3 Qe5 16. Bf4 Qc5+ 17. Be3 {½-½ (17) Stern,R (2515)-Barseghyan,A (2313) Berlin 2019}) 14. Nd5 {[%emt 0:04:30]} Nxd5 {[%emt 0:00:30]} (14... Bxd5 $5 15. Qxa5 (15. cxd5 e6 $11) (15. exd5 Qxd2 16. Bxd2 e6 $11) 15... Rxa5 16. exd5 (16. cxd5 e6 $11) 16... e6 $11) 15. Qxa5 {[%emt 0:08:30]} (15. exd5 Qxd2 16. Bxd2 Bf5 $15) 15... Rxa5 {[%emt 0:00:00]} 16. cxd5 {[%emt 0:00:30]} Bd7 {[%emt 0:00:00]} 17. Rhc1 {[%emt 0:09:30][%cal Bh1c1,Bc1c7,Bc7e7][%mdl 32]} Bb5 {[%emt 0:13:30] [#]} (17... b5 $14 {might be stronger.}) 18. Rc7 $1 $16 {[%emt 0:08:30][%csl LRb7,LRe7]} Bxe2 {[%emt 0:01:30]} 19. Kxe2 {[%emt 0:00:30]} Rb5 {[%emt 0:00:00]} 20. b4 {[%emt 0:04:30] aiming for Kd3.} axb3 {[%emt 0:02:00]} 21. Rxb3 {[%emt 0:01:30]} (21. axb3 $6 e6 $14) 21... Ra5 {[%emt 0:00:30]} 22. a3 {[%emt 0:02:30] White has more active pieces.} (22. Rbxb7 $6 Rxa2+ 23. Kd3 Ra3+ 24. Kd2 Rfa8 $11) 22... Be5 {[%emt 0:02:30]} (22... Bf6 $16 {might work better.}) 23. Rxe7 $18 {[%emt 0:06:30]} Rfa8 {[%emt 0:06:30]} 24. Bh6 {[%emt 0:05:30]} (24. Rexb7 Bxh2 25. Bh6 f5 26. Rg7+ Kh8) (24. Rbxb7 Rxa3 25. f4 (25. Rxf7 Ra2+ 26. Kd1 Rxg2 $14) 25... R8a4 $14) (24. f4 $18 {is more deadly.} Bf6 25. Rd7) 24... f5 {[%emt 0:00:00]} (24... b5 $16 {was worth a try.} 25. h3 Ra4) 25. f4 {[%emt 0:05:30]} (25. Rexb7 $6 Rxa3 26. f4 Rxb3 27. Rxb3 Bf6 $16) 25... Bh8 {[%emt 0:02:00]} (25... Bf6 26. Re6 (26. Rexb7 fxe4 27. Rb8+ Rxb8 $14) 26... Ba1 27. exf5 (27. Rxb7 fxe4 28. Rxe4 Rxd5 $16) 27... gxf5 28. Rg3+ (28. Rxd6 Rxa3 29. Rxa3 Rxa3 $18) 28... Kf7) 26. exf5 {[%emt 0:05:30]} Rxd5 {[%emt 0:03:30]} 27. fxg6 {[%emt 0:00:30]} hxg6 {[%emt 0:00:30]} 28. Rg3 {[%emt 0:01:19]} Bb2 {[%emt 0:03:30]} 29. Rxg6+ {[%emt 0:00:40]} Kh8 {[%emt 0:00:00]} 30. Bg7+ {[%emt 0:08:08]} Bxg7 {[%emt 0:00:00]} 31. Rgxg7 {[%emt 0:00:06]} ({Resist} 31. Rexg7 Rb5 32. Rd7 Rb2+ 33. Kf3 Rxa3+ 34. Ke4 Ra5 $18) 31... Rxa3 $2 {[%emt 0:01:30][%mdl 4096] Endgame KRR-KRR} (31... Rh5 32. h3 Rh4) 32. Rh7+ {[%emt 0:00:36]} Kg8 {[%emt 0:00:30]} 33. Reg7+ {[%emt 0:00:06]} Kf8 {[%emt 0:00:00]} 34. Rxb7 {[%emt 0:00:23][%cal Rh7h8] [#]} Kg8 {[%emt 0:01:00] Inhibits Rh8+.} 35. Rhd7 {[%emt 0:03:37][%cal Rb7b8]} Ra8 {[%emt 0:00:30] Against Rb8+} 36. Kf3 {[%emt 0:01:07] Rg7+ would kill now.} Rd4 {[%emt 0:02:30]} 37. Kg4 {[%emt 0:01:42] Weighted Error Value: White=0.11 (very precise) /Black=0.70} 1-0